lending/lending_fUSD_20250913
["ID","MTS","AMOUNT","RATE_DAILY","PERIOD"]
[385295029,1757753459293,-400.0,0.00031739,2]
[385295030,1757753459303,-583.43,0.00031739,2]
[385295031,1757753459312,-456.94,0.00031739,2]
[385295032,1757753459321,-500.0,0.00031739,2]
[385295033,1757753459330,-400.0,0.00031739,2]
[385295034,1757753459339,-500.0,0.00031739,2]
[385295035,1757753459349,-500.0,0.00031739,2]
[385295036,1757753459358,-500.0,0.00031739,2]
[385295037,1757753459367,-546.6642815,0.0003174,2]
[385295038,1757753459376,-29100.0543136,0.0003174,2]
[385295039,1757753459385,-1415.1208301,0.0003174,2]
[385295040,1757753459394,-1159.3444374,0.0003174,2]
[385295041,1757753459403,-632.51891139,0.00031757,2]
[385295042,1757753459413,-195.43416129,0.00031768,2]
[385295043,1757753459423,-1399.26140913,0.00031772,2]
[385295044,1757753459433,-500.0,0.00031773,5]
[385295045,1757753459442,-500.0,0.00031773,2]
[385295046,1757753459451,-175.86994695,0.00031773,5]
[385295047,1757753459461,-500.0,0.00031777,2]
[385295048,1757753459470,-677.59,0.00031777,2]
[385295049,1757753459479,-583.43,0.00031777,2]
[385295050,1757753459489,-500.0,0.00031777,2]
[385295051,1757753459499,-604.48594262,0.00031778,2]
[385295052,1757753459508,-581.4,0.00031778,2]
[385295053,1757753459518,-500.0,0.00031778,2]
[385295054,1757753459530,-1399.26140913,0.00031815,2]
[385295055,1757753459539,-1000.0,0.00031823,2]
[385295056,1757753459549,-173.50223023,0.00031842,2]
[385295057,1757753459559,-500.0,0.00031855,2]
[385295058,1757753459569,-500.0,0.00031855,2]
[385295059,1757753459579,-150.0,0.00031855,2]
[385295060,1757753459588,-868.39943309,0.00031856,2]
[385295061,1757753459598,-1399.26140913,0.00031857,2]
[385295062,1757753459607,-400.0,0.00031862,2]
[385295063,1757753459617,-390.54733904,0.00031862,2]
[385295064,1757753459627,-400.0,0.00031862,2]
[385295065,1757753459637,-611.33,0.00031862,2]
[385295066,1757753459646,-1828.89,0.00031862,2]
[385295067,1757753459655,-3765.88,0.00031862,2]
[385295068,1757753459665,-481.76,0.00031862,2]
[385295069,1757753459674,-400.0,0.00031862,2]
[385295070,1757753459683,-727.35,0.00031862,2]
[385295071,1757753459692,-613.19,0.00031862,2]
[385295072,1757753459701,-599.42,0.00031862,2]
[385295073,1757753459711,-648.09,0.00031862,2]
[385295074,1757753459720,-1045.52,0.00031862,2]
[385295075,1757753459729,-618.59,0.00031862,2]
[385295076,1757753459739,-553.73,0.00031862,2]
[385295077,1757753459748,-889.25,0.00031862,2]
[385295078,1757753459758,-503.73,0.00031862,2]
[385295079,1757753459767,-491.48,0.00031862,2]
[385295080,1757753459776,-612.46,0.00031862,2]
[385295081,1757753459785,-400.0,0.00031862,2]
[385295082,1757753459794,-505.29,0.00031862,2]
[385295083,1757753459804,-3021.79,0.00031862,2]
[385295084,1757753459813,-2135.14,0.00031862,2]
[385295085,1757753459823,-579.01,0.00031862,2]
[385295086,1757753459832,-499.28,0.00031862,2]
[385295087,1757753459842,-772.93,0.00031862,2]
[385295088,1757753459851,-652.56,0.00031862,2]
[385295089,1757753459860,-531.58,0.00031862,2]
[385295090,1757753459869,-863.95,0.00031862,2]
[385295091,1757753459879,-1365.01,0.00031862,2]
[385295092,1757753459888,-728.48,0.00031862,2]
[385295093,1757753459897,-400.0,0.00031862,2]
[385295094,1757753459906,-550.84,0.00031862,2]
[385295095,1757753459915,-400.0,0.00031862,2]
[385295096,1757753459924,-1796.47,0.00031862,2]
[385295097,1757753459933,-512.83,0.00031862,2]
[385295098,1757753459942,-400.0,0.00031862,2]
[385295099,1757753459951,-2614.6,0.00031862,2]
[385295100,1757753459960,-2484.85,0.00031862,2]
[385295101,1757753459969,-612.3,0.00031862,2]
[385295102,1757753459978,-222.87273177,0.0003189,2]
[385295103,1757753459987,-400.0,0.00031891,2]
[385295104,1757753459995,-448.21,0.00031891,2]
[385295105,1757753460005,-821.18,0.00031891,2]
[385295106,1757753460014,-1046.97,0.00031891,2]
[385295107,1757753460023,-705.32,0.00031891,2]
[385295108,1757753460032,-804.39,0.00031891,2]
[385295109,1757753460042,-462.43,0.00031891,2]
[385295110,1757753460051,-461.59,0.00031891,2]
[385295111,1757753460061,-682.12,0.00031891,2]
[385295112,1757753460071,-482.31,0.00031891,2]
[385295113,1757753460080,-445.66,0.00031891,2]
[385295114,1757753460089,-924.51,0.00031891,2]
[385295115,1757753460098,-645.28,0.00031891,2]
[385295116,1757753460108,-1443.0,0.00031891,2]
[385295117,1757753460116,-400.0,0.00031891,2]
[385295118,1757753460125,-473.97,0.00031891,2]
[385295119,1757753460135,-400.0,0.00031891,2]
[385295120,1757753460144,-1259.76,0.00031891,2]
[385295121,1757753460154,-855.57,0.00031891,2]
[385295122,1757753460164,-202.7341008,0.00031891,2]
[385295123,1757753460173,-902.31,0.00031891,2]
[385295124,1757753460183,-753.2,0.00031891,2]
[385295125,1757753460192,-510.42,0.00031891,2]
[385295126,1757753460201,-400.0,0.00031891,2]
[385295127,1757753460211,-461.05,0.00031891,2]
[385295128,1757753460220,-2230.79,0.00031891,2]
[385295129,1757753460229,-994.65,0.00031891,2]
[385295130,1757753460238,-356.85946511,0.00031891,2]
[385295131,1757753460247,-587.62,0.00031891,2]
[385295132,1757753460256,-400.0,0.00031891,2]
[385295133,1757753460265,-612.14,0.00031891,2]
[385295134,1757753460277,-507.00380172,0.00031891,2]
[385295135,1757753460286,-400.0,0.00031891,2]
[385295136,1757753460295,-680.12,0.00031891,2]
[385295137,1757753460305,-562.83,0.00031891,2]
[385295138,1757753460314,-354.46804459,0.00031891,2]
[385295139,1757753460325,-400.0,0.00031891,2]
[385295140,1757753460334,-448.43,0.00031891,2]
[385295141,1757753460343,-437.58,0.00031891,2]
[385295142,1757753460356,-987.5,0.00031891,2]
[385295143,1757753460365,-592.89,0.00031891,2]
[385295144,1757753460375,-405.44,0.00031891,2]
[385295145,1757753460385,-2380.98,0.00031891,2]
[385295146,1757753460395,-258.89114358,0.00031891,2]
[385295147,1757753460405,-400.0,0.00031891,2]
[385295148,1757753460416,-400.0,0.00031891,2]
[385295149,1757753460424,-7528.99,0.00031891,2]
[385295150,1757753460433,-400.0,0.00031891,2]
[385295151,1757753460446,-533.4,0.00031891,2]
[385295152,1757753460456,-400.0,0.00031891,2]
[385295153,1757753460465,-400.0,0.00031891,2]
[385295154,1757753460475,-4687.189297,0.00031891,2]
[385295155,1757753460484,-652.08,0.00031891,2]
[385295156,1757753460493,-3368.195074,0.00031891,2]
[385295157,1757753460502,-400.0,0.00031892,2]
[385295158,1757753460512,-684.85,0.00031892,2]
[385295159,1757753460521,-400.0,0.00031892,2]
[385295160,1757753460531,-589.66,0.00031892,2]
[385295161,1757753460542,-894.69,0.00031892,2]
[385295162,1757753460553,-1567.43,0.00031892,2]
[385295163,1757753460563,-400.0,0.00031892,2]
[385295164,1757753460571,-417.16,0.00031892,2]
[385295165,1757753460585,-497.22,0.00031892,2]
[385295166,1757753460595,-871.69,0.00031892,2]
[385295167,1757753460605,-721.23,0.00031892,2]
[385295168,1757753460614,-1028.03,0.00031892,2]
[385295169,1757753460623,-759.27,0.00031892,2]
[385295170,1757753460632,-400.0,0.00031892,2]
[385295171,1757753460641,-522.45,0.00031892,2]
[385295172,1757753460652,-484.7,0.00031892,2]
[385295173,1757753460661,-1076.06,0.00031892,2]
[385295174,1757753460670,-530.25,0.00031892,2]
[385295175,1757753460679,-400.0,0.00031892,2]
[385295176,1757753460688,-400.0,0.00031892,2]
[385295177,1757753460697,-763.04,0.00031892,2]
[385295178,1757753460706,-602.74,0.00031892,2]
[385295179,1757753460716,-530.39,0.00031892,2]
[385295180,1757753460725,-400.0,0.00031892,2]
[385295181,1757753460734,-680.28,0.00031892,2]
[385295182,1757753460745,-400.0,0.00031892,2]
[385295183,1757753460759,-768.13,0.00031892,2]
[385295184,1757753460768,-447.59,0.00031892,2]
[385295185,1757753460776,-533.08,0.00031892,2]
[385295186,1757753460785,-679.27,0.00031892,2]
[385295187,1757753460795,-552.61,0.00031892,2]
[385295188,1757753460804,-813.93,0.00031892,2]
[385295189,1757753460813,-446.72,0.00031892,2]
[385295190,1757753460822,-498.22,0.00031892,2]
[385295191,1757753460831,-451.39,0.00031892,2]
[385295192,1757753460840,-584.74,0.00031892,2]
[385295193,1757753460850,-400.0,0.00031892,2]
[385295194,1757753460859,-629.96,0.00031892,2]
[385295195,1757753460869,-606.25,0.00031892,2]
[385295196,1757753460879,-759.98,0.00031892,2]
[385295197,1757753460889,-400.0,0.00031892,2]
[385295198,1757753460898,-558.07,0.00031892,2]
[385295199,1757753460907,-400.0,0.00031892,2]
[385295200,1757753460916,-400.0,0.00031892,2]
[385295201,1757753460925,-400.0,0.00031892,2]
[385295202,1757753460935,-400.0,0.00031892,2]
[385295203,1757753460944,-400.0,0.00031892,2]
[385295204,1757753460953,-642.94,0.00031892,2]
[385295205,1757753460962,-400.0,0.00031892,2]
[385295206,1757753460971,-400.0,0.00031892,2]
[385295207,1757753460980,-400.0,0.00031892,2]
[385295208,1757753460989,-400.0,0.00031892,2]
[385295209,1757753460998,-400.0,0.00031892,2]
[385295210,1757753461007,-542.42,0.00031892,2]
[385295211,1757753461016,-400.0,0.00031892,2]
[385295212,1757753461028,-286.62504994,0.00031892,2]
[385295213,1757753461037,-400.0,0.00031892,2]
[385295214,1757753461046,-400.0,0.00031892,2]
[385295215,1757753461056,-400.0,0.00031892,2]
[385295216,1757753461066,-2280.62,0.00031892,2]
[385295217,1757753461075,-470.38,0.00031892,2]
[385295218,1757753461085,-400.0,0.00031892,2]
[385295219,1757753461094,-522.34,0.00031892,2]
[385295220,1757753461103,-400.0,0.00031892,2]
[385295221,1757753461113,-400.0,0.00031892,2]
[385295222,1757753461122,-400.0,0.00031892,2]
[385295223,1757753461131,-412.35381565,0.00031892,2]
[385295224,1757753461140,-400.0,0.00031892,2]
[385295225,1757753461149,-400.0,0.00031892,2]
[385295226,1757753461158,-483.11,0.00031892,2]
[385295227,1757753461167,-400.0,0.00031892,2]
[385295228,1757753461176,-679.31,0.00031892,2]
[385295229,1757753461185,-403.49,0.00031892,2]
[385295230,1757753461194,-400.0,0.00031892,2]
[385295231,1757753461203,-400.0,0.00031892,2]
[385295232,1757753461213,-571.09,0.00031892,2]
[385295233,1757753461222,-400.0,0.00031892,2]
[385295234,1757753461232,-400.0,0.00031892,2]
[385295235,1757753461241,-400.0,0.00031892,2]
[385295236,1757753461250,-400.0,0.00031892,2]
[385295237,1757753461259,-400.0,0.00031892,2]
[385295238,1757753461268,-785.22,0.00031892,2]
[385295239,1757753461277,-400.0,0.00031892,2]
[385295240,1757753461286,-554.91,0.00031892,2]
[385295241,1757753461295,-577.62,0.00031892,2]
[385295242,1757753461305,-400.0,0.00031892,2]
[385295243,1757753461314,-400.0,0.00031892,2]
[385295244,1757753461323,-400.0,0.00031892,2]
[385295245,1757753461332,-400.0,0.00031892,2]
[385295246,1757753461341,-400.0,0.00031892,2]
[385295247,1757753461350,-224.351056,0.00031892,7]
[385295248,1757753461358,-732.02,0.00031892,2]
[385295249,1757753461368,-400.0,0.00031892,2]
[385295250,1757753461377,-400.0,0.00031892,2]
[385295251,1757753461386,-400.0,0.00031892,2]
[385295252,1757753461395,-441.85,0.00031892,2]
[385295253,1757753461404,-400.0,0.00031892,2]
[385295254,1757753461413,-425.66,0.00031892,2]
[385295255,1757753461422,-400.0,0.00031892,2]
[385295256,1757753461431,-2805.78,0.00031892,2]
[385295257,1757753461441,-400.0,0.00031892,2]
[385295258,1757753461451,-400.0,0.00031892,2]
[385295259,1757753461460,-294.1206603,0.00031892,2]
[385295260,1757753461470,-400.0,0.00031892,2]
[385295261,1757753461479,-523.94,0.00031892,2]
[385295262,1757753461488,-400.0,0.00031892,2]
[385295263,1757753461496,-1414.74,0.00031892,2]
[385295264,1757753461506,-616.7,0.00031892,2]
[385295265,1757753461515,-400.0,0.00031892,2]
[385295266,1757753461524,-400.0,0.00031892,2]
[385295267,1757753461534,-400.0,0.00031892,2]
[385295268,1757753461543,-400.0,0.00031892,2]
[385295269,1757753461553,-400.0,0.00031892,2]
[385295270,1757753461563,-479.7,0.00031892,2]
[385295271,1757753461572,-407.06056076,0.00031892,2]
[385295272,1757753461581,-518.39,0.00031892,2]
[385295273,1757753461590,-400.0,0.00031892,2]
[385295274,1757753461599,-495.22,0.00031892,2]
[385295275,1757753461608,-400.0,0.00031892,2]
[385295276,1757753461617,-650.77,0.00031892,2]
[385295277,1757753461626,-400.0,0.00031892,2]
[385295278,1757753461635,-400.0,0.00031892,2]
[385295279,1757753461643,-459.0,0.00031892,2]
[385295280,1757753461819,-400.0,0.00031892,2]
[385295281,1757753461846,-400.0,0.00031892,2]
[385295282,1757753461855,-818.92,0.00031892,2]
[385295283,1757753461864,-400.0,0.00031892,2]
[385295284,1757753461874,-600.29,0.00031892,2]
[385295285,1757753461884,-400.0,0.00031892,2]
[385295286,1757753461893,-405.42,0.00031892,2]
[385295287,1757753461902,-548.82,0.00031892,2]
[385295288,1757753461912,-400.0,0.00031892,2]
[385295289,1757753461921,-400.0,0.00031892,2]
[385295290,1757753461930,-400.0,0.00031892,2]
[385295291,1757753461939,-400.0,0.00031892,2]
[385295292,1757753461948,-720.8,0.00031892,2]
[385295293,1757753461957,-400.0,0.00031892,2]
[385295294,1757753461967,-400.0,0.00031892,2]
[385295295,1757753461975,-400.0,0.00031892,2]
[385295296,1757753461985,-400.0,0.00031892,2]
[385295297,1757753461994,-755.99,0.00031892,2]
[385295298,1757753462003,-400.0,0.00031892,2]
[385295299,1757753462013,-400.0,0.00031892,2]
[385295300,1757753462024,-463.01,0.00031892,2]
[385295301,1757753462034,-400.0,0.00031892,2]
[385295302,1757753462044,-441.14,0.00031892,2]
[385295303,1757753462055,-400.0,0.00031892,2]
[385295304,1757753462066,-474.94,0.00031892,2]
[385295305,1757753462075,-253.24469941,0.00031892,2]
[385295306,1757753462085,-400.0,0.00031892,2]
[385295307,1757753462094,-533.21,0.00031892,2]
[385295308,1757753462103,-575.05,0.00031892,2]
[385295309,1757753462112,-400.0,0.00031892,2]
[385295310,1757753462121,-891.6,0.00031892,2]
[385295311,1757753462130,-400.0,0.00031892,2]
[385295312,1757753462140,-404.37317711,0.00031892,2]
[385295313,1757753462150,-523.66,0.00031892,2]
[385295314,1757753462160,-400.0,0.00031892,2]
[385295315,1757753462169,-863.65,0.00031892,2]
[385295316,1757753462178,-400.0,0.00031892,2]
[385295317,1757753462187,-1894.02,0.00031892,2]
[385295318,1757753462196,-400.0,0.00031892,2]
[385295319,1757753462205,-400.0,0.00031892,2]
[385295320,1757753462214,-400.0,0.00031892,2]
[385295321,1757753462223,-400.0,0.00031892,2]
[385295322,1757753462233,-621.2,0.00031892,2]
[385295323,1757753462242,-400.0,0.00031892,2]
[385295324,1757753462251,-184.07335,0.00031892,7]
[385295325,1757753462260,-1544.58,0.00031892,2]
[385295326,1757753462269,-400.0,0.00031892,2]
[385295327,1757753462283,-1456.93,0.00031892,2]
[385295328,1757753462292,-184.07335,0.00031892,7]
[385295329,1757753462302,-184.07335,0.00031892,7]
[385295330,1757753462311,-557.64,0.00031892,2]
[385295331,1757753462322,-400.0,0.00031892,2]
[385295332,1757753462332,-184.07335,0.00031892,7]
[385295333,1757753462341,-406.1523988,0.00031892,2]
[385295334,1757753462352,-405.24280591,0.00031892,2]
[385295335,1757753462361,-562.08,0.00031892,2]
[385295336,1757753462370,-400.0,0.00031892,2]
[385295337,1757753462379,-703.16,0.00031892,2]
[385295338,1757753462389,-1000.09,0.00031892,2]
[385295339,1757753462399,-722.17,0.00031892,2]
[385295340,1757753462408,-400.0,0.00031892,2]
[385295341,1757753462417,-400.0,0.00031892,2]
[385295342,1757753462427,-400.0,0.00031892,2]
[385295343,1757753462436,-400.0,0.00031892,2]
[385295344,1757753462445,-400.0,0.00031892,2]
[385295345,1757753462455,-400.0,0.00031892,2]
[385295346,1757753462464,-408.7997371,0.00031892,2]
[385295347,1757753462474,-643.83,0.00031892,2]
[385295348,1757753462483,-400.0,0.00031892,2]
[385295349,1757753462493,-400.0,0.00031892,2]
[385295350,1757753462502,-641.57,0.00031892,2]
[385295351,1757753462512,-403.99743963,0.00031892,2]
[385295352,1757753462521,-454.36,0.00031892,2]
[385295353,1757753462530,-730.14,0.00031892,2]
[385295354,1757753462540,-400.0,0.00031892,2]
[385295355,1757753462549,-462.05,0.00031892,2]
[385295356,1757753462559,-406.2361355,0.00031892,2]
[385295357,1757753462569,-400.0,0.00031892,2]
[385295358,1757753462578,-412.11,0.00031892,2]
[385295359,1757753462587,-400.0,0.00031892,2]
[385295360,1757753462596,-400.0,0.00031892,2]
[385295361,1757753462606,-400.0,0.00031892,2]
[385295362,1757753462615,-400.0,0.00031892,2]
[385295363,1757753462626,-501.12,0.00031892,2]
[385295364,1757753462635,-400.0,0.00031892,2]
[385295365,1757753462647,-400.0,0.00031892,2]
[385295366,1757753462657,-400.0,0.00031892,2]
[385295367,1757753462667,-400.0,0.00031892,2]
[385295368,1757753462677,-400.0,0.00031892,2]
[385295369,1757753462686,-593.09,0.00031892,2]
[385295370,1757753462696,-1097.07,0.00031892,2]
[385295371,1757753462705,-430.57335924,0.00031892,2]
[385295372,1757753462715,-618.4,0.00031892,2]
[385295373,1757753462724,-406.11597558,0.00031892,2]
[385295374,1757753462734,-601.91,0.00031892,2]
[385295375,1757753462743,-400.0,0.00031892,2]
[385295376,1757753462753,-592.37,0.00031892,2]
[385295377,1757753462762,-400.0,0.00031892,2]
[385295378,1757753462770,-400.0,0.00031892,2]
[385295379,1757753462780,-798.82,0.00031892,2]
[385295380,1757753462789,-400.0,0.00031892,2]
[385295381,1757753462798,-438.3,0.00031892,2]
[385295382,1757753462807,-400.0,0.00031892,2]
[385295383,1757753462817,-730.3,0.00031892,2]
[385295384,1757753462826,-400.0,0.00031892,2]
[385295385,1757753462835,-400.0,0.00031892,2]
[385295386,1757753462846,-400.0,0.00031892,2]
[385295387,1757753462857,-748.87,0.00031892,2]
[385295388,1757753462866,-433.17365395,0.00031892,2]
[385295389,1757753462875,-400.0,0.00031892,2]
[385295390,1757753462885,-400.0,0.00031892,2]
[385295391,1757753462894,-500.0,0.00031892,2]
[385295392,1757753462904,-400.0,0.00031892,2]
[385295393,1757753462914,-1527.46,0.00031892,2]
[385295394,1757753462925,-400.0,0.00031892,2]
[385295395,1757753462935,-400.0,0.00031892,2]
[385295396,1757753462946,-400.0,0.00031892,2]
[385295397,1757753462956,-400.0,0.00031892,2]
[385295398,1757753462965,-1885.76,0.00031892,2]
[385295399,1757753462975,-400.0,0.00031892,2]
[385295400,1757753462984,-2500.24,0.00031892,2]
[385295401,1757753462993,-400.0,0.00031892,2]
[385295402,1757753463002,-400.0,0.00031892,2]
[385295403,1757753463012,-458.0,0.00031892,2]
[385295404,1757753463021,-400.0,0.00031892,2]
[385295405,1757753463030,-489.28,0.00031892,2]
[385295406,1757753463039,-513.21,0.00031892,2]
[385295407,1757753463048,-1134.07,0.00031892,2]
[385295408,1757753463058,-400.0,0.00031892,2]
[385295409,1757753463068,-609.38,0.00031892,2]
[385295410,1757753463077,-400.0,0.00031892,2]
[385295411,1757753463086,-400.0,0.00031892,2]
[385295412,1757753463096,-506.47,0.00031892,2]
[385295413,1757753463106,-1069.09,0.00031892,2]
[385295414,1757753463115,-400.0,0.00031892,2]
[385295415,1757753463125,-1609.66,0.00031892,2]
[385295416,1757753463134,-400.0,0.00031892,2]
[385295417,1757753463144,-400.0,0.00031892,2]
[385295418,1757753463153,-400.0,0.00031892,2]
[385295419,1757753463163,-154.72,0.00031898,30]
[385295420,1757753463172,-1399.26140913,0.000319,2]
[385295421,1757753463181,-155.06393899,0.000319,15]
[385295422,1757753463190,-543.66765522,0.000319,2]
[385295423,1757753463199,-11717.89106132,0.00031968,2]
[385295424,1757753463209,-500.0,0.00031973,5]
[385295425,1757753463218,-500.0,0.00031973,5]
[385295426,1757753463227,-300.0,0.00031989,10]
[385295427,1757753463236,-500.0,0.00031989,2]
[385295428,1757753463246,-500.0,0.00031989,2]
[385295429,1757753463255,-906.51100697,0.0003199,2]
[385295430,1757753463264,-410.73248995,0.00031991,2]
[385295431,1757753463274,-400.0,0.00031991,2]
[385295432,1757753463283,-400.0,0.00031991,2]
[385295433,1757753463292,-400.0,0.00031991,2]
[385295434,1757753463302,-191.87799053,0.00031991,2]
[385295435,1757753463311,-400.0,0.00031991,2]
[385295436,1757753463320,-349.77446712,0.00031991,2]
[385295437,1757753463330,-320.2828872,0.00031991,2]
[385295438,1757753463339,-402.68725107,0.00031991,2]
[385295439,1757753463348,-516.83541768,0.00031991,2]
[385295440,1757753463358,-400.0,0.00031991,2]
[385295441,1757753463367,-400.0,0.00031991,2]
[385295442,1757753463376,-408.20319602,0.00031991,2]
[385295443,1757753463386,-402.67121005,0.00031991,2]
[385295444,1757753463395,-401.9481482,0.00031991,2]
[385295445,1757753463404,-400.0,0.00031991,2]
[385295446,1757753463413,-400.0,0.00031991,2]
[385295447,1757753463422,-400.0,0.00031991,2]
[385295448,1757753463432,-402.60126836,0.00031991,2]
[385295449,1757753463441,-406.08863151,0.00031991,2]
[385295450,1757753463450,-400.0,0.00031992,2]
[385295451,1757753463459,-400.0,0.00031992,2]
[385295452,1757753463471,-400.0,0.00031992,2]
[385295453,1757753463481,-623.57,0.00031992,2]
[385295454,1757753463491,-400.0,0.00031992,2]
[385295455,1757753463501,-400.0,0.00031992,2]
[385295456,1757753463510,-400.0,0.00031992,2]
[385295457,1757753463519,-400.0,0.00031992,2]
[385295458,1757753463529,-400.0,0.00031992,2]
[385295459,1757753463538,-400.0,0.00031992,2]
[385295460,1757753463547,-400.0,0.00031992,2]
[385295461,1757753463557,-400.0,0.00031992,2]
[385295462,1757753463567,-400.0,0.00031992,2]
[385295463,1757753463576,-641.44,0.00031992,2]
[385295464,1757753463586,-400.0,0.00031992,2]
[385295465,1757753463596,-400.0,0.00031992,2]
[385295466,1757753463605,-400.0,0.00031992,2]
[385295467,1757753463615,-400.0,0.00031992,2]
[385295468,1757753463624,-406.64376646,0.00031992,2]
[385295469,1757753463634,-400.0,0.00031992,2]
[385295470,1757753463643,-400.0,0.00031992,2]
[385295471,1757753463652,-400.0,0.00031992,2]
[385295472,1757753463661,-1000.0,0.00031992,2]
[385295473,1757753463671,-400.0,0.00031992,2]
[385295474,1757753463680,-723.49,0.00031992,2]
[385295475,1757753463689,-412.14788451,0.00031992,2]
[385295476,1757753463698,-400.0,0.00031992,2]
[385295477,1757753463707,-400.0,0.00031992,2]
[385295478,1757753463716,-400.0,0.00031992,2]
[385295479,1757753463726,-400.0,0.00031992,2]
[385295480,1757753463736,-407.83,0.00031992,2]
[385295481,1757753463745,-725.74,0.00031992,2]
[385295482,1757753463754,-667.08,0.00031992,2]
[385295483,1757753463763,-400.0,0.00031992,2]
[385295484,1757753463771,-414.25,0.00031992,2]
[385295485,1757753463780,-400.0,0.00031992,2]
[385295486,1757753463789,-406.95501886,0.00031992,2]
[385295487,1757753463798,-400.0,0.00031992,2]
[385295488,1757753463807,-400.0,0.00031992,2]
[385295489,1757753463817,-400.0,0.00031992,2]
[385295490,1757753463827,-404.99979326,0.00031992,2]
[385295491,1757753463835,-403.32139806,0.00031992,2]
[385295492,1757753463844,-400.0,0.00031992,2]
[385295493,1757753463853,-400.0,0.00031992,2]
[385295494,1757753463863,-400.0,0.00031992,2]
[385295495,1757753463872,-400.0,0.00031992,2]
[385295496,1757753463881,-406.58101559,0.00031992,2]
[385295497,1757753463891,-400.0,0.00031992,2]
[385295498,1757753463900,-400.0,0.00031992,2]
[385295499,1757753463909,-400.0,0.00031992,2]
[385295500,1757753463918,-400.0,0.00031992,2]
[385295501,1757753463927,-400.0,0.00031992,2]
[385295502,1757753463936,-400.0,0.00031992,2]
[385295503,1757753463945,-400.0,0.00031992,2]
[385295504,1757753463954,-400.0,0.00031992,2]
[385295505,1757753463964,-431.36,0.00031992,2]
[385295506,1757753463973,-492.92,0.00031992,2]
[385295507,1757753463983,-400.0,0.00031992,2]
[385295508,1757753463992,-400.0,0.00031992,2]
[385295509,1757753464001,-400.0,0.00031992,2]
[385295510,1757753464010,-729.2,0.00031992,2]
[385295511,1757753464019,-400.0,0.00031992,2]
[385295512,1757753464028,-400.0,0.00031992,2]
[385295513,1757753464037,-626.14,0.00031992,2]
[385295514,1757753464047,-400.0,0.00031992,2]
[385295515,1757753464056,-400.0,0.00031992,2]
[385295516,1757753464067,-400.0,0.00031992,2]
[385295517,1757753464076,-403.91120822,0.00031992,2]
[385295518,1757753464085,-400.0,0.00031992,2]
[385295519,1757753464094,-400.0,0.00031992,2]
[385295520,1757753464104,-714.71,0.00031992,2]
[385295521,1757753464113,-727.53,0.00031992,2]
[385295522,1757753464122,-400.0,0.00031992,2]
[385295523,1757753464131,-400.0,0.00031992,2]
[385295524,1757753464140,-400.0,0.00031992,2]
[385295525,1757753464149,-562.78,0.00031992,2]
[385295526,1757753464158,-782.98,0.00031992,2]
[385295527,1757753464167,-400.0,0.00031992,2]
[385295528,1757753464177,-400.0,0.00031992,2]